[Event "30th Abu Dhabi Festival A-Open 2024"]
[Site "Abu Dhabi"]
[Date "2024.08.23"]
[Round "8.9"]
[White "Shahinyan, Vladimir"]
[Black "Saydaliev, Akobirkhon"]
[Result "1/2-1/2"]
[ECO "C01"]
[WhiteElo "2094"]
[BlackElo "2266"]
[Annotator "RC"]
[PlyCount "121"]
[EventDate "2024.08.15"]
[EventType "swiss"]
[EventCountry "UAE"]
[SourceTitle "playchess.com"]
[Source "ChessBase"]
[SourceQuality "1"]
[TimeControl "5400+30"]

1. e4 {[%emt 0:00:07]} e6 {[%emt 0:00:07]} 2. d4 {[%emt 0:01:17]} d5 {[%emt 0:01:39]} 3. Bd3 {[%emt 0:03:34]} dxe4 {[%emt 0:00:43]} 4. Bxe4 {[%emt 0:00:05]} c5 {[%emt 0:00:43]} 5. Ne2 {[%emt 0:01:40]} Nf6 {[%emt 0:01:46]} 6. Bf3 {[%emt 0:00:17]} Nc6 {[%emt 0:00:21]} 7. Be3 {[%emt 0:01:14]} Nd5 {[%emt 0:04:03]} 8. Bxd5 {[%emt 0:06:11]} Qxd5 {[%emt 0:00:30]} 9. Nbc3 {[%emt 0:00:14]} Qd7 {[%emt 0:07:35]} 10. dxc5 {[%emt 0:01:58]} Be7 {[%emt 0:00:24]} 11. Qxd7+ {[%emt 0:04:47]} Bxd7 {[%emt 0:00:02]} 12. O-O-O {[%emt 0:00:12]} Ne5 {[%emt 0:01:43]} 13. Bd4 {[%emt 0:08:58]} Nc6 {[%emt 0:01:03]} 14. Be3 {[%emt 0:00:54]} Ne5 {[%emt 0:01:45]} 15. Ne4 {[%emt 0:00:55]} Bc6 {[%emt 0:03:20]} 16. N2c3 {[%emt 0:01:53]} Nc4 {[%emt 0:04:10]} 17. Bf4 {[%emt 0:07:59]} e5 {[%emt 0:03:14]} 18. Bg5 {[%emt 0:04:19]} f6 {[%emt 0:01:09]} 19. Bh4 {[%emt 0:02:09]} g5 {[%emt 0:06:03]} 20. Bg3 {[%emt 0:00:06]} f5 {[%emt 0:00:04]} 21. Nd2 {[%emt 0:00:06]} Nxd2 {[%emt 0:00:10]} 22. Bxe5 {[%emt 0:00:08]} Bxg2 {[%emt 0:00:03]} 23. Rhg1 {[%emt 0:13:02]} Nf3 {[%emt 0:01:14]} 24. Bxh8 {[%emt 0:00:06]} Nxg1 {[%emt 0:00:07]} 25. Rxg1 {[%emt 0:00:04]} Bc6 {[%emt 0:00:22]} 26. b4 {[%emt 0:02:33]} Kf7 {[%emt 0:03:12]} 27. Be5 {[%emt 0:00:11]} Re8 {[%emt 0:01:10]} 28. Bd4 {[%emt 0:04:03]} f4 {[%emt 0:03:46]} 29. Re1 {[%emt 0:07:08]} g4 {[%emt 0:00:52]} 30. Ne4 {[%emt 0:04:57]} g3 {[%emt 0:14:26]} 31. hxg3 {[%emt 0:03:57]} fxg3 {[%emt 0:01:42]} 32. Nxg3 {[%emt 0:00:59]} Bg5+ {[%emt 0:00:09]} 33. Be3 {[%emt 0:00:15]} Bf3 {[%emt 0:00:59]} 34. Nf5 {[%emt 0:03:49]} Re5 {[%emt 0:04:17]} 35. Nd6+ {[%emt 0:00:16]} Kf8 {[%emt 0:00:41]} 36. Rg1 {[%emt 0:00:46]} Bf6 {[%emt 0:01:59]} 37. Rg3 {[%emt 0:01:06]} Bc6 {[%emt 0:01:05]} 38. b5 {[%emt 0:00:50]} Bd7 {[%emt 0:00:05]} 39. c4 {[%emt 0:03:37]} Be6 {[%emt 0:04:08]} 40. Bd4 {[%emt 0:03:34]} Re1+ {[%emt 0:00:32]} 41. Kd2 {[%emt 0:00:03]} Bxd4 {[%emt 0:29:37]} 42. Kxe1 {[%emt 0:00:03]} Bxc5 {[%emt 0:00:00]} 43. Nxb7 {[%emt 0:00:14]} Bb4+ {[%emt 0:00:00]} 44. Kd1 {[%emt 0:00:15]} h5 {[%emt 0:00:00]} 45. Re3 {[%emt 0:02:56]} Bc8 {[%emt 0:00:00]} 46. Nd8 {[%emt 0:00:35]} h4 {[%emt 0:00:00]} 47. Ne6+ {[%emt 0:01:23]} Kf7 {[%emt 0:00:00]} 48. Nf4 {[%emt 0:01:20]} Bc5 {[%emt 0:00:00]} 49. Ke2 {[%emt 0:01:38]} Bxe3 {[%emt 0:00:00]} 50. fxe3 {[%emt 0:00:01]} Kf6 {[%emt 0:00:00]} 51. Kf3 {[%emt 0:00:06]} Ke5 {[%emt 0:00:00]} 52. c5 {[%emt 0:00:53]} h3 {[%emt 0:00:00]} 53. a4 {[%emt 0:00:47]} a6 {[%emt 0:00:00]} 54. Kg3 {[%emt 0:00:46]} axb5 {[%emt 0:00:00]} 55. axb5 {[%emt 0:00:04]} Bd7 {[%emt 0:00:00]} 56. c6 {[%emt 0:00:29]} Be8 {[%emt 0:00:00]} 57. Nh5 {[%emt 0:03:17]} Bxh5 {[%emt 0:00:00]} 58. c7 {[%emt 0:00:03]} h2 {[%emt 0:00:00]} 59. Kxh2 {[%emt 0:03:16]} Bg4 {[%emt 0:00:00]} 60. b6 {[%emt 0:00:15]} Bc8 {[%emt 0:00:00]} 61. Kg3 {[%emt 0:00:10]} 1/2-1/2

[Event "30th Abu Dhabi Festival A-Open 2024"]
[Site "Abu Dhabi"]
[Date "2024.08.23"]
[Round "8.10"]
[White "Mercado, Levi"]
[Black "Aditya Varun Gampa"]
[Result "0-1"]
[ECO "B25"]
[WhiteElo "2068"]
[BlackElo "2261"]
[Annotator "ChessBase"]
[PlyCount "98"]
[EventDate "2024.08.15"]
[EventType "swiss"]
[EventCountry "UAE"]
[SourceTitle "playchess.com"]
[Source "ChessBase"]
[SourceQuality "1"]
[TimeControl "5400+30"]

1. e4 {[%emt 0:00:30]} c5 {[%emt 0:03:47]} 2. Ne2 {[%emt 0:00:05]} Nc6 {[%emt 0:00:40]} 3. Nbc3 {[%emt 0:00:10]} g6 {[%emt 0:00:26]} 4. g3 {[%emt 0:00:44]} Bg7 {[%emt 0:00:04]} 5. Bg2 {[%emt 0:00:04]} d6 {[%emt 0:00:10]} 6. d3 {[%emt 0:00:23]} Rb8 {[%emt 0:00:14]} 7. a4 {[%emt 0:03:47]} a6 {[%emt 0:03:02]} 8. Be3 {[%emt 0:05:53]} Nf6 {[%emt 0:02:58]} 9. h3 {[%emt 1:23:24]} O-O {[%emt 1:23:39]} 10. d4 {[%emt 0:00:00]} cxd4 {[%emt 0:00:30]} 11. Nxd4 {[%emt 0:01:00]} e5 {[%emt 0:00:30]} 12. Nb3 {[%emt 0:00:00]} Be6 {[%emt 0:00:00]} 13. Nd5 {[%emt 0:00:00]} Bxd5 {[%emt 0:00:00]} 14. exd5 {[%emt 0:00:00]} Na5 {[%emt 0:00:00]} 15. Nxa5 Qxa5+ 16. c3 {[%emt 0:02:30]} e4 {[%emt 0:00:00]} 17. Bd4 {[%emt 0:00:30]} Rfe8 {[%emt 0:00:00]} 18. O-O {[%emt 0:00:30]} Re7 {[%emt 0:03:30]} 19. Re1 {[%emt 0:00:30]} Rbe8 {[%emt 0:00:30]} 20. g4 {[%emt 0:00:00]} Qxd5 {[%emt 0:00:00]} 21. Bxf6 {[%emt 0:00:00]} Qxd1 {[%emt 0:00:00]} 22. Raxd1 {[%emt 0:00:00]} Bxf6 {[%emt 0:00:00]} 23. Rxd6 {[%emt 0:00:00]} Be5 {[%emt 0:00:00]} 24. Rd5 {[%emt 0:00:00]} f5 {[%emt 0:00:00]} 25. Red1 {[%emt 0:00:00]} Kg7 {[%emt 0:00:00]} 26. c4 {[%emt 0:00:00]} Kf6 {[%emt 0:00:00]} 27. b4 {[%emt 0:00:00]} h5 {[%emt 0:00:00]} 28. c5 {[%emt 0:00:00]} Bc7 {[%emt 0:00:00]} 29. Rd7 {[%emt 0:00:00]} hxg4 {[%emt 0:00:00]} 30. hxg4 {[%emt 0:00:00]} Bb8 {[%emt 0:00:00]} 31. Rxe7 {[%emt 0:00:00]} Rxe7 {[%emt 0:00:00]} 32. gxf5 {[%emt 0:00:00]} gxf5 {[%emt 0:00:00]} 33. Rd8 {[%emt 0:00:00]} Bc7 {[%emt 0:00:00]} 34. Rc8 {[%emt 0:00:00]} Ke5 {[%emt 0:00:00]} 35. b5 {[%emt 0:00:00]} axb5 {[%emt 0:00:00]} 36. axb5 {[%emt 0:00:00]} b6 {[%emt 0:00:00]} 37. c6 {[%emt 0:00:00]} f4 {[%emt 0:00:00]} 38. Rh8 {[%emt 0:00:00]} Kd4 {[%emt 0:00:00]} 39. Bh3 {[%emt 0:00:00]} e3 {[%emt 0:00:00]} 40. fxe3+ {[%emt 0:00:00]} fxe3 {[%emt 0:00:00]} 41. Bf1 {[%emt 0:00:03]} e2 {[%emt 0:00:00]} 42. Bxe2 {[%emt 0:00:13]} Rxe2 {[%emt 0:00:00]} 43. Rh7 {[%emt 0:00:35]} Bf4 {[%emt 0:00:00]} 44. Rb7 {[%emt 0:01:43]} Ke4 {[%emt 0:00:00]} 45. Ra7 {[%emt 0:04:10]} Rb2 {[%emt 0:00:00]} 46. Ra4+ {[%emt 0:04:20]} Kf3 {[%emt 0:00:00]} 47. Ra3+ {[%emt 0:00:16]} Be3+ {[%emt 0:00:00]} 48. Kh1 {[%emt 0:00:33]} Rb1+ {[%emt 0:00:00]} 49. Kh2 {[%emt 0:00:09]} Rxb5 {[%emt 0:00:00]} 0-1

[Event "30th Abu Dhabi Festival A-Open 2024"]
[Site "Abu Dhabi"]
[Date "2024.08.23"]
[Round "8.11"]
[White "Rayes, Abdul Kader"]
[Black "Hamidov, Allahverdi"]
[Result "0-1"]
[ECO "D02"]
[WhiteElo "2064"]
[BlackElo "2253"]
[Annotator "RC"]
[PlyCount "68"]
[EventDate "2024.08.15"]
[EventType "swiss"]
[EventCountry "UAE"]
[SourceTitle "playchess.com"]
[Source "ChessBase"]
[SourceQuality "1"]
[TimeControl "5400+30"]

1. g3 {[%emt 0:00:03]} d5 {[%emt 0:00:15]} 2. Nf3 {[%emt 0:00:06]} Nf6 {[%emt 0:00:05]} 3. Bg2 {[%emt 0:00:06]} c5 {[%emt 0:00:04]} 4. O-O {[%emt 0:00:13]} e6 {[%emt 0:00:09]} 5. d4 {[%emt 0:01:22]} cxd4 {[%emt 0:00:04]} 6. Nxd4 {[%emt 0:00:05]} e5 {[%emt 0:00:03]} 7. Nb3 {[%emt 0:00:08]} Be6 {[%emt 0:00:04]} 8. Bg5 {[%emt 0:00:05]} Nbd7 {[%emt 0:00:30]} 9. Nc3 {[%emt 0:00:07]} Be7 {[%emt 0:00:09]} 10. e4 {[%emt 0:01:32]} dxe4 {[%emt 0:02:47]} 11. Nxe4 {[%emt 0:05:16]} Nxe4 {[%emt 0:00:37]} 12. Bxe7 {[%emt 0:00:03]} Qxe7 {[%emt 0:07:47]} 13. Bxe4 {[%emt 0:00:33]} Nf6 {[%emt 0:00:07]} 14. Bg2 {[%emt 0:01:23]} O-O {[%emt 0:00:23]} 15. Re1 {[%emt 0:00:38]} Qc7 {[%emt 0:01:01]} 16. Qe2 {[%emt 0:03:45]} Nd7 {[%emt 0:03:48]} 17. Rad1 {[%emt 0:05:06]} a5 {[%emt 0:03:25]} 18. Bd5 {[%emt 1:18:59]} Bxd5 {[%emt 0:03:08]} 19. Rxd5 {[%emt 0:00:00]} a4 {[%emt 0:02:00]} 20. Nc1 {[%emt 0:00:00]} e4 {[%emt 0:05:18]} 21. Rd4 {[%emt 0:00:00]} f5 {[%emt 0:04:30]} 22. f4 {[%emt 0:02:00]} Nf6 {[%emt 0:07:06]} 23. Red1 {[%emt 0:00:00]} Rac8 {[%emt 0:11:41]} 24. c3 {[%emt 0:00:00]} a3 {[%emt 0:00:37]} 25. Qb5 {[%emt 0:00:00]} Qf7 {[%emt 0:07:07]} 26. Ne2 {[%emt 0:00:00]} Qh5 {[%emt 0:03:04]} 27. R4d2 {[%emt 0:00:00]} e3 {[%emt 0:07:44]} 28. Rd6 {[%emt 0:00:54]} Ng4 {[%emt 0:02:53]} 29. h4 {[%emt 0:01:21]} Nf2 {[%emt 0:00:33]} 30. Rb1 {[%emt 0:01:08]} Kh8 {[%emt 0:00:43]} 31. Kg2 {[%emt 0:00:27]} Ne4 {[%emt 0:02:33]} 32. Re6 {[%emt 0:00:39]} Nd2 {[%emt 0:00:38]} 33. Re1 {[%emt 0:00:29]} Qf3+ {[%emt 0:00:10]} 34. Kh3 {[%emt 0:00:09]} Nf1 {[%emt 0:26:27]} 0-1

[Event "30th Abu Dhabi Festival A-Open 2024"]
[Site "Abu Dhabi"]
[Date "2024.08.24"]
[Round "9.1"]
[White "Rzayev, Chingiz"]
[Black "Dinesh Rajan M"]
[Result "0-1"]
[ECO "A13"]
[WhiteElo "2134"]
[BlackElo "2092"]
[Annotator "RC"]
[PlyCount "112"]
[EventDate "2024.08.15"]
[EventType "swiss"]
[EventCountry "UAE"]
[SourceTitle "playchess.com"]
[Source "ChessBase"]
[SourceQuality "1"]
[TimeControl "5400+30"]

1. c4 {[%emt 0:00:27]} e6 {[%emt 0:01:04]} 2. Nf3 {[%emt 0:00:10]} d5 {[%emt 0:00:08]} 3. cxd5 {[%emt 0:01:19]} exd5 {[%emt 0:00:06]} 4. g3 {[%emt 0:00:41]} Nf6 {[%emt 0:02:24]} 5. Bg2 {[%emt 0:00:21]} Bd6 {[%emt 0:01:08]} 6. O-O {[%emt 0:04:40]} O-O {[%emt 0:01:44]} 7. b3 {[%emt 0:00:20]} Re8 {[%emt 0:02:13]} 8. Bb2 {[%emt 0:00:37]} c6 {[%emt 0:01:05]} 9. d3 {[%emt 0:00:25]} Nbd7 {[%emt 0:05:04]} 10. Nbd2 {[%emt 0:00:58]} Ne5 {[%emt 0:01:13]} 11. Nxe5 {[%emt 0:03:18]} Bxe5 {[%emt 0:00:10]} 12. Bxe5 {[%emt 0:00:16]} Rxe5 {[%emt 0:00:02]} 13. e4 {[%emt 0:00:36]} Re7 {[%emt 0:07:31]} 14. Qc2 {[%emt 0:09:20]} Bg4 {[%emt 0:11:22]} 15. Rfe1 {[%emt 0:00:56]} Qb6 {[%emt 0:00:57]} 16. h3 {[%emt 0:06:06]} Bh5 {[%emt 0:01:35]} 17. exd5 {[%emt 0:03:11]} Rxe1+ {[%emt 0:00:35]} 18. Rxe1 {[%emt 0:03:00]} cxd5 {[%emt 0:00:48]} 19. Qc3 {[%emt 0:13:18]} Bg6 {[%emt 0:11:31]} 20. d4 {[%emt 0:05:48]} Bf5 {[%emt 0:01:03]} 21. Qc5 {[%emt 0:04:54]} Be6 {[%emt 0:05:06]} 22. Rc1 {[%emt 0:10:45]} h6 {[%emt 0:00:54]} 23. Qxb6 {[%emt 0:01:55]} axb6 {[%emt 0:00:02]} 24. a4 {[%emt 0:00:05]} Kf8 {[%emt 0:20:45]} 25. Rc7 {[%emt 0:02:07]} Rb8 {[%emt 0:00:01]} 26. Nf1 {[%emt 0:03:57]} Ne8 {[%emt 0:00:38]} 27. Rc3 {[%emt 0:00:21]} Ke7 {[%emt 0:00:54]} 28. Ne3 {[%emt 0:00:06]} Kd6 {[%emt 0:00:36]} 29. f4 {[%emt 0:00:30]} f5 {[%emt 0:00:39]} 30. g4 {[%emt 0:01:09]} g6 {[%emt 0:01:24]} 31. Bf3 {[%emt 0:02:19]} Nc7 {[%emt 0:05:30]} 32. Be2 {[%emt 0:02:11]} Rf8 {[%emt 0:03:12]} 33. g5 {[%emt 0:09:47]} hxg5 {[%emt 0:00:55]} 34. Ng2 {[%emt 0:00:05]} gxf4 {[%emt 0:00:28]} 35. Nxf4 {[%emt 0:00:05]} Bf7 {[%emt 0:00:35]} 36. Rg3 {[%emt 0:03:54]} Ne6 {[%emt 0:01:19]} 37. Nxe6 {[%emt 0:00:10]} Kxe6 {[%emt 0:00:05]} 38. Kf2 {[%emt 0:00:24]} Rh8 {[%emt 0:01:03]} 39. b4 {[%emt 0:01:09]} Rh4 {[%emt 0:00:08]} 40. Rd3 {[%emt 0:00:07]} Kd6 {[%emt 0:04:28]} 41. a5 {[%emt 0:00:18]} b5 {[%emt 0:00:38]} 42. Bf3 {[%emt 0:05:19]} Rxh3 {[%emt 0:00:22]} 43. a6 {[%emt 0:00:07]} bxa6 {[%emt 0:00:27]} 44. Ra3 {[%emt 0:00:03]} Be8 {[%emt 0:00:37]} 45. Rxa6+ {[%emt 0:00:21]} Bc6 {[%emt 0:00:07]} 46. Ra7 {[%emt 0:00:37]} g5 {[%emt 0:00:58]} 47. Rg7 {[%emt 0:02:53]} g4 {[%emt 0:00:07]} 48. Be2 {[%emt 0:00:07]} Rh2+ {[%emt 0:00:30]} 49. Ke1 {[%emt 0:00:23]} Bd7 {[%emt 0:01:15]} 50. Bd3 {[%emt 0:00:37]} f4 {[%emt 0:00:23]} 51. Rg6+ {[%emt 0:00:02]} Ke7 {[%emt 0:00:09]} 52. Rg7+ {[%emt 0:00:04]} Ke8 {[%emt 0:02:40]} 53. Rg5 {[%emt 0:01:14]} g3 {[%emt 0:00:18]} 54. Re5+ {[%emt 0:00:28]} Kf7 {[%emt 0:00:25]} 55. Bf5 {[%emt 0:00:37]} Rh1+ {[%emt 0:00:08]} 56. Ke2 {[%emt 0:00:04]} g2 {[%emt 0:00:04]} 0-1

[Event "30th Abu Dhabi Festival A-Open 2024"]
[Site "Abu Dhabi"]
[Date "2024.08.24"]
[Round "9.2"]
[White "Darini, Iliya"]
[Black "Yeremyan, Alen"]
[Result "1-0"]
[ECO "B23"]
[WhiteElo "2083"]
[BlackElo "2279"]
[Annotator "RC"]
[PlyCount "109"]
[EventDate "2024.08.15"]
[EventType "swiss"]
[EventCountry "UAE"]
[SourceTitle "playchess.com"]
[Source "ChessBase"]
[SourceQuality "1"]
[TimeControl "5400+30"]

1. e4 {[%emt 0:00:04]} c5 {[%emt 0:00:12]} 2. Nc3 {[%emt 0:00:17]} d6 {[%emt 0:00:21]} 3. f4 {[%emt 0:00:12]} Nc6 {[%emt 0:02:02]} 4. Nf3 {[%emt 0:00:35]} g6 {[%emt 0:01:44]} 5. Bb5 {[%emt 0:00:07]} Bg7 {[%emt 0:07:19]} 6. Bxc6+ {[%emt 0:00:49]} bxc6 {[%emt 0:00:01]} 7. d3 {[%emt 0:00:42]} Nh6 {[%emt 0:06:34]} 8. O-O {[%emt 0:04:44]} f5 {[%emt 0:03:23]} 9. Qe2 {[%emt 0:07:31]} Nf7 {[%emt 0:07:00]} 10. Re1 {[%emt 0:07:00]} O-O {[%emt 0:05:43]} 11. e5 {[%emt 0:03:11]} Qc7 {[%emt 0:06:58]} 12. Bd2 {[%emt 0:03:20]} Nd8 {[%emt 0:04:49]} 13. Nd1 {[%emt 0:11:13]} Ne6 {[%emt 0:00:34]} 14. Qf2 {[%emt 0:02:20]} Rb8 {[%emt 0:09:16]} 15. Qh4 {[%emt 0:01:43]} Nd4 {[%emt 0:16:28]} 16. Bc3 {[%emt 0:11:08]} Nxf3+ {[%emt 0:04:31]} 17. gxf3 {[%emt 0:00:06]} d5 {[%emt 0:00:53]} 18. Qf2 {[%emt 0:04:40]} d4 {[%emt 0:01:15]} 19. Bd2 {[%emt 0:00:01]} Be6 {[%emt 0:00:11]} 20. b3 {[%emt 0:00:48]} Bd5 {[%emt 0:01:08]} 21. Rc1 {[%emt 0:05:22]} g5 {[%emt 0:02:41]} 22. c4 {[%emt 0:06:57]} Bf7 {[%emt 0:01:38]} 23. Qg3 {[%emt 0:01:44]} g4 {[%emt 0:04:25]} 24. Nf2 {[%emt 0:03:09]} gxf3 {[%emt 0:05:04]} 25. Qxf3 {[%emt 0:00:05]} Kh8 {[%emt 0:00:24]} 26. Nh3 {[%emt 0:01:16]} Bh6 {[%emt 0:01:13]} 27. Kh1 {[%emt 0:02:20]} Qc8 {[%emt 0:01:07]} 28. Rg1 {[%emt 0:02:51]} Qe6 {[%emt 0:00:34]} 29. Be1 {[%emt 0:01:16]} Rg8 {[%emt 0:00:39]} 30. Bh4 {[%emt 0:00:45]} Rg4 {[%emt 0:00:35]} 31. Bg5 {[%emt 0:03:02]} Bh5 {[%emt 0:00:24]} 32. Qf2 {[%emt 0:02:09]} Bg7 {[%emt 0:01:53]} 33. Rxg4 {[%emt 0:05:18]} Bxg4 {[%emt 0:01:34]} 34. Ng1 {[%emt 0:00:14]} Bh5 {[%emt 0:02:09]} 35. Qh4 {[%emt 0:00:39]} Qg6 {[%emt 0:00:01]} 36. Rc2 {[%emt 0:03:21]} Rg8 {[%emt 0:02:02]} 37. Rg2 {[%emt 0:01:06]} Bd1 {[%emt 0:01:19]} 38. Rg3 {[%emt 0:00:52]} Qe6 {[%emt 0:00:51]} 39. Bxe7 {[%emt 0:00:26]} Bg4 {[%emt 0:00:21]} 40. h3 {[%emt 0:00:51]} Bd1 {[%emt 0:00:37]} 41. Kh2 {[%emt 0:00:45]} h6 {[%emt 0:00:26]} 42. Bxc5 {[%emt 0:02:02]} Re8 {[%emt 0:00:30]} 43. Bxd4 {[%emt 0:00:43]} Kh7 {[%emt 0:00:01]} 44. Bc5 {[%emt 0:00:33]} a5 {[%emt 0:00:25]} 45. Rg2 {[%emt 0:00:25]} a4 {[%emt 0:00:32]} 46. b4 {[%emt 0:00:40]} Qf7 {[%emt 0:00:40]} 47. Bd6 {[%emt 0:00:31]} a3 {[%emt 0:00:22]} 48. Qe1 {[%emt 0:00:44]} Bh5 {[%emt 0:00:13]} 49. Qc1 {[%emt 0:00:25]} Qa7 {[%emt 0:00:21]} 50. Bc5 {[%emt 0:00:10]} Qc7 {[%emt 0:00:18]} 51. Qxa3 {[%emt 0:00:28]} Rg8 {[%emt 0:00:52]} 52. d4 {[%emt 0:00:35]} Qd8 {[%emt 0:00:16]} 53. Bd6 {[%emt 0:00:29]} Bf7 {[%emt 0:01:13]} 54. Qd3 {[%emt 0:00:55]} Qd7 {[%emt 0:00:14]} 55. Nf3 {[%emt 0:00:09]} 1-0

[Event "30th Abu Dhabi Festival A-Open 2024"]
[Site "Abu Dhabi"]
[Date "2024.08.24"]
[Round "9.3"]
[White "Andreasyan, Edgar"]
[Black "Lad Mandar Pradip"]
[Result "0-1"]
[ECO "B90"]
[WhiteElo "2027"]
[BlackElo "2254"]
[Annotator "RC"]
[PlyCount "96"]
[EventDate "2024.08.15"]
[EventType "swiss"]
[EventCountry "UAE"]
[SourceTitle "playchess.com"]
[Source "ChessBase"]
[SourceQuality "1"]
[TimeControl "5400+30"]

1. e4 {[%emt 0:00:30]} c5 {[%emt 0:00:30]} 2. Nf3 {[%emt 0:00:30]} d6 {[%emt 0:00:30]} 3. d4 {[%emt 0:00:30]} cxd4 {[%emt 0:01:22]} 4. Nxd4 {[%emt 0:01:44]} Nf6 {[%emt 0:00:04]} 5. Nc3 {[%emt 0:00:06]} a6 {[%emt 0:00:30]} 6. f3 {[%emt 0:00:30]} e5 {[%emt 0:01:24]} 7. Nb3 {[%emt 0:00:32]} Be7 {[%emt 0:00:32]} 8. Be3 {[%emt 0:00:05]} Be6 {[%emt 0:00:19]} 9. Qd2 {[%emt 0:00:05]} h5 {[%emt 0:00:30]} 10. O-O-O {[%emt 0:00:30]} Nbd7 {[%emt 0:00:00]} 11. Nd5 {[%emt 0:09:32]} Nxd5 {[%emt 0:00:00]} 12. exd5 {[%emt 0:00:03]} Bf5 {[%emt 0:00:00]} 13. Bd3 {[%emt 0:00:25]} Bxd3 {[%emt 0:00:08]} 14. Qxd3 {[%emt 0:00:06]} Bg5 {[%emt 0:00:06]} 15. Kb1 {[%emt 0:03:22]} Rc8 {[%emt 0:02:13]} 16. Bf2 {[%emt 0:08:38]} O-O {[%emt 0:00:30]} 17. h4 {[%emt 0:00:30]} Bf4 {[%emt 0:08:01]} 18. g4 {[%emt 0:20:36]} hxg4 {[%emt 0:32:38]} 19. fxg4 {[%emt 0:00:42]} Nf6 {[%emt 0:01:21]} 20. Qf3 {[%emt 0:08:18]} Qd7 {[%emt 0:07:52]} 21. Rhg1 {[%emt 0:05:00]} Rc4 {[%emt 0:02:18]} 22. g5 {[%emt 0:14:49]} Ne4 {[%emt 0:03:21]} 23. Be3 {[%emt 0:14:31]} Bxe3 {[%emt 0:13:23]} 24. Qxe3 {[%emt 0:00:01]} Qf5 {[%emt 0:12:01]} 25. Rdf1 {[%emt 0:00:57]} Qg6 {[%emt 0:00:55]} 26. h5 {[%emt 0:02:29]} Qxh5 {[%emt 0:00:05]} 27. Rh1 {[%emt 0:00:03]} Qg4 {[%emt 0:02:24]} 28. Nd2 Nxd2+ {[%emt 0:04:56]} 29. Qxd2 {[%emt 0:03:31]} Qg3 {[%emt 0:02:06]} 30. Rfg1 {[%emt 0:01:42]} Rh4 {[%emt 0:01:05]} 31. a3 {[%emt 0:02:04]} Rxh1 {[%emt 0:02:13]} 32. Rxh1 {[%emt 0:00:01]} f5 {[%emt 0:01:09]} 33. gxf6 {[%emt 0:00:14]} Rxf6 {[%emt 0:00:06]} 34. Qb4 {[%emt 0:01:10]} Qg2 {[%emt 0:02:14]} 35. Rc1 {[%emt 0:00:28]} Qxd5 {[%emt 0:00:22]} 36. Qh4 {[%emt 0:01:47]} Qf7 {[%emt 0:00:41]} 37. Qh3 {[%emt 0:00:10]} Rh6 {[%emt 0:00:25]} 38. Qe3 {[%emt 0:02:10]} Qd5 {[%emt 0:00:31]} 39. c4 {[%emt 0:00:14]} Qg2 {[%emt 0:00:33]} 40. Ka2 {[%emt 0:00:27]} Rh1 {[%emt 0:00:34]} 41. Rc3 {[%emt 0:01:58]} Rh2 {[%emt 0:00:24]} 42. Qb6 {[%emt 0:00:00]} Qc6 {[%emt 0:00:29]} 43. Qd8+ {[%emt 0:00:00]} Kh7 {[%emt 0:00:01]} 44. Qg5 {[%emt 0:00:07]} Qe4 {[%emt 0:00:19]} 45. a4 {[%emt 0:01:22]} Rh1 {[%emt 0:01:10]} 46. Kb3 {[%emt 0:00:24]} d5 {[%emt 0:00:29]} 47. cxd5 {[%emt 0:00:36]} Qxd5+ {[%emt 0:00:09]} 48. Rc4 {[%emt 0:00:24]} Rh3+ {[%emt 0:00:12]} 0-1

[Event "30th Abu Dhabi Festival A-Open 2024"]
[Site "Abu Dhabi"]
[Date "2024.08.24"]
[Round "9.4"]
[White "Zhou, Yichen"]
[Black "Manukyan, Sargis A."]
[Result "1/2-1/2"]
[ECO "D41"]
[WhiteElo "2023"]
[BlackElo "2211"]
[Annotator "RC"]
[PlyCount "111"]
[EventDate "2024.08.15"]
[EventType "swiss"]
[EventCountry "UAE"]
[SourceTitle "playchess.com"]
[Source "ChessBase"]
[SourceQuality "1"]
[TimeControl "5400+30"]

1. d4 {[%emt 1:31:00]} d5 {[%emt 0:00:04]} 2. c4 {[%emt 0:00:00]} e6 {[%emt 0:00:07]} 3. Nc3 {[%emt 0:00:00]} Nf6 {[%emt 0:00:05]} 4. cxd5 {[%emt 0:00:00]} Nxd5 {[%emt 0:00:04]} 5. e4 {[%emt 0:00:00]} Nxc3 {[%emt 0:00:04]} 6. bxc3 {[%emt 0:00:00]} c5 {[%emt 0:00:04]} 7. Nf3 {[%emt 0:00:00]} cxd4 {[%emt 0:00:04]} 8. cxd4 {[%emt 0:00:00]} Bb4+ {[%emt 0:00:04]} 9. Bd2 {[%emt 0:00:00]} Bxd2+ {[%emt 0:00:04]} 10. Qxd2 {[%emt 0:00:00]} O-O {[%emt 0:00:06]} 11. Be2 {[%emt 0:00:00]} Nd7 {[%emt 0:00:24]} 12. O-O {[%emt 0:00:00]} b6 {[%emt 0:00:03]} 13. Rac1 {[%emt 0:00:00]} Bb7 {[%emt 0:00:07]} 14. Bd3 {[%emt 0:00:00]} Rc8 {[%emt 0:00:38]} 15. Qf4 {[%emt 0:00:00]} Nf6 {[%emt 0:03:59]} 16. Rxc8 {[%emt 0:00:00]} Qxc8 {[%emt 0:00:25]} 17. Rc1 {[%emt 0:00:00]} Qb8 {[%emt 0:01:00]} 18. Qxb8 {[%emt 0:00:00]} Rxb8 {[%emt 0:00:56]} 19. Rc7 {[%emt 0:00:00]} Bxe4 {[%emt 0:00:33]} 20. Bxe4 {[%emt 0:00:00]} Nxe4 {[%emt 0:00:05]} 21. Rxa7 {[%emt 0:00:00]} Rc8 {[%emt 0:00:03]} 22. g3 {[%emt 0:00:00]} f6 {[%emt 0:00:04]} 23. Re7 {[%emt 0:00:00]} Rc6 {[%emt 0:00:57]} 24. d5 {[%emt 0:00:00]} Rc1+ {[%emt 0:01:31]} 25. Kg2 {[%emt 0:00:00]} e5 {[%emt 0:00:05]} 26. Nh4 {[%emt 0:00:00]} Rd1 {[%emt 0:06:10]} 27. Nf5 {[%emt 0:00:00]} g6 {[%emt 0:02:25]} 28. Nh6+ {[%emt 0:00:00]} Kf8 {[%emt 0:00:05]} 29. Rxh7 {[%emt 0:00:00]} Rxd5 {[%emt 0:00:08]} 30. Rf7+ {[%emt 0:00:00]} Ke8 {[%emt 0:00:40]} 31. Rb7 {[%emt 0:00:00]} Rd6 {[%emt 0:05:28]} 32. h4 {[%emt 0:00:00]} Nc5 {[%emt 0:09:13]} 33. Rg7 {[%emt 0:00:00]} f5 {[%emt 0:01:44]} 34. h5 {[%emt 0:00:00]} gxh5 {[%emt 0:00:06]} 35. Nxf5 {[%emt 0:00:00]} Rd2 {[%emt 0:00:08]} 36. Re7+ {[%emt 0:00:00]} Kf8 {[%emt 0:00:11]} 37. Rxe5 {[%emt 0:00:00]} Nd3 {[%emt 0:01:42]} 38. Rb5 {[%emt 0:00:00]} Rxa2 {[%emt 0:00:06]} 39. Kf3 {[%emt 0:00:00]} Rxf2+ {[%emt 0:00:21]} 40. Ke3 {[%emt 0:00:00]} Rb2 {[%emt 0:00:06]} 41. Rxb2 {[%emt 0:00:00]} Nxb2 {[%emt 0:00:05]} 42. Kf4 {[%emt 0:00:00]} Kf7 {[%emt 0:01:01]} 43. Kg5 {[%emt 0:00:00]} Ke6 {[%emt 0:00:21]} 44. Ne3 {[%emt 0:00:00]} b5 {[%emt 0:00:46]} 45. Kxh5 {[%emt 0:00:00]} Nd3 {[%emt 0:01:24]} 46. Kg4 {[%emt 0:00:00]} Ke5 {[%emt 0:00:28]} 47. Kf3 {[%emt 0:00:00]} b4 {[%emt 0:01:57]} 48. Ke2 {[%emt 0:00:00]} Ke4 {[%emt 0:00:05]} 49. Kd2 {[%emt 0:00:00]} Ne5 {[%emt 0:02:31]} 50. Nc2 {[%emt 0:00:00]} Nc4+ {[%emt 0:00:31]} 51. Kc1 {[%emt 0:00:00]} b3 {[%emt 0:00:08]} 52. Na3 {[%emt 0:00:00]} Na5 {[%emt 0:00:32]} 53. Kb2 {[%emt 0:00:00]} Kf3 {[%emt 0:00:45]} 54. Nc4 {[%emt 0:00:00]} Nxc4+ {[%emt 0:00:03]} 55. Kxb3 {[%emt 0:00:00]} Kxg3 {[%emt 0:00:04]} 56. Kxc4 {[%emt 0:00:00]} 1/2-1/2